fUSD/lending_fUSD_20250101
["ID","MTS","AMOUNT","RATE_DAILY","PERIOD"]
[347345262,1735715439894,-2670.85,0.00011033,2]
[347345264,1735715439903,-1279.08,0.00011033,2]
[347345266,1735715439912,-500.0,0.00011033,2]
[347345268,1735715439921,-847.26,0.00011033,2]
[347345270,1735715439930,-500.0,0.00011033,2]
[347345272,1735715439940,-1334.73,0.00011033,2]
[347345274,1735715439948,-1781.22,0.00011033,2]
[347345276,1735715439958,-500.0,0.00011033,2]
[347345278,1735715439971,-500.0,0.00011033,2]
[347345280,1735715439982,-500.0,0.00011033,2]
[347345282,1735715439991,-616.95,0.00011033,2]
[347345284,1735715440002,-2641.11,0.00011033,2]
[347345286,1735715440011,-1738.15,0.00011033,2]
[347345288,1735715440021,-1085.82,0.00011033,2]
[347345290,1735715440030,-500.0,0.00011033,2]
[347345292,1735715440040,-1536.87,0.00011033,2]
[347345294,1735715440050,-500.0,0.00011033,2]
[347345296,1735715440059,-500.0,0.00011033,2]
[347345298,1735715440069,-500.0,0.00011033,2]
[347345300,1735715440079,-500.0,0.00011033,2]
[347345302,1735715440088,-500.0,0.00011033,2]
[347345304,1735715440098,-703.44,0.00011033,2]
[347345306,1735715440107,-2315.84,0.00011033,2]
[347345308,1735715440117,-500.0,0.00011033,2]
[347345310,1735715440126,-500.0,0.00011033,2]
[347345312,1735715440135,-500.0,0.00011033,2]
[347345314,1735715440144,-500.0,0.00011033,2]
[347345316,1735715440153,-1058.47,0.00011033,2]
[347345318,1735715440162,-1181.61,0.00011033,2]
[347345320,1735715440171,-500.0,0.00011033,2]
[347345322,1735715440181,-500.0,0.00011033,2]
[347345324,1735715440190,-822.47,0.00011033,2]
[347345326,1735715440199,-575.87,0.00011033,2]
[347345328,1735715440208,-500.0,0.00011033,2]
[347345330,1735715440217,-389.98288122,0.00011033,2]
[347345331,1735715440227,-500.0,0.00011033,2]
[347345333,1735715440236,-543.46,0.00011033,2]
[347345335,1735715440245,-500.0,0.00011033,2]
[347345337,1735715440254,-500.0,0.00011033,2]
[347345339,1735715440263,-2068.56,0.00011033,2]
[347345341,1735715440272,-500.0,0.00011033,2]
[347345343,1735715440281,-500.0,0.00011033,2]
[347345345,1735715440291,-671.29,0.00011033,2]
[347345347,1735715440301,-500.0,0.00011033,2]
[347345350,1735715440310,-500.0,0.00011033,2]
[347345352,1735715440320,-685.68,0.00011033,2]
[347345354,1735715440329,-500.0,0.00011033,2]
[347345355,1735715440340,-1925.63,0.00011033,2]
[347345357,1735715440351,-500.0,0.00011033,2]
[347345360,1735715440360,-2752.8,0.00011033,2]
[347345361,1735715440369,-553.47,0.00011033,2]
[347345364,1735715440381,-553.76,0.00011033,2]
[347345366,1735715440389,-500.0,0.00011033,2]
[347345368,1735715440398,-736.61,0.00011033,2]
[347345370,1735715440407,-500.0,0.00011033,2]
[347345372,1735715440417,-500.0,0.00011033,2]
[347345374,1735715440426,-602.8,0.00011033,2]
[347345376,1735715440435,-500.0,0.00011033,2]
[347345378,1735715440444,-712.52,0.00011033,2]
[347345379,1735715440453,-500.0,0.00011033,2]
[347345382,1735715440463,-500.0,0.00011033,2]
[347345383,1735715440472,-500.0,0.00011033,2]
[347345386,1735715440483,-879.95,0.00011033,2]
[347345388,1735715440492,-500.0,0.00011033,2]
[347345390,1735715440503,-500.0,0.00011033,2]
[347345392,1735715440512,-1553.71,0.00011033,2]
[347345394,1735715440521,-500.0,0.00011033,2]
[347345396,1735715440530,-593.1,0.00011033,2]
[347345398,1735715440540,-1655.32,0.00011033,2]
[347345400,1735715440549,-504.92,0.00011033,2]
[347345402,1735715440558,-500.0,0.00011033,2]
[347345404,1735715440567,-824.44,0.00011033,2]
[347345406,1735715440576,-500.0,0.00011033,2]
[347345408,1735715440586,-534.21,0.00011033,2]
[347345410,1735715440594,-2750.7,0.00011033,2]
[347345412,1735715440603,-945.65,0.00011033,2]
[347345414,1735715440612,-500.0,0.00011033,2]
[347345416,1735715440621,-500.0,0.00011033,2]
[347345418,1735715440630,-1052.86,0.00011033,2]
[347345420,1735715440641,-500.0,0.00011033,2]
[347345422,1735715440650,-500.0,0.00011033,2]
[347345424,1735715440659,-674.55,0.00011033,2]
[347345426,1735715440668,-571.81,0.00011033,2]
[347345428,1735715440677,-791.2,0.00011033,2]
[347345430,1735715440686,-500.0,0.00011033,2]
[347345432,1735715440696,-500.0,0.00011033,2]
[347345434,1735715440706,-500.0,0.00011033,2]
[347345436,1735715440715,-500.0,0.00011033,2]
[347345438,1735715440723,-1496.37,0.00011033,2]
[347345440,1735715440732,-500.0,0.00011033,2]
[347345442,1735715440741,-500.0,0.00011033,2]
[347345444,1735715440751,-792.63,0.00011033,2]
[347345446,1735715440760,-742.1,0.00011033,2]
[347345448,1735715440768,-500.0,0.00011033,2]
[347345450,1735715440777,-500.0,0.00011033,2]
[347345452,1735715440786,-503.98,0.00011033,2]
[347345454,1735715440795,-1449.22,0.00011033,2]
[347345456,1735715440804,-500.0,0.00011033,2]
[347345458,1735715440813,-500.0,0.00011033,2]
[347345460,1735715440822,-1334.17,0.00011033,2]
[347345462,1735715440831,-1677.93,0.00011033,2]
[347345464,1735715440839,-866.32,0.00011033,2]
[347345466,1735715440848,-500.0,0.00011033,2]
[347345468,1735715440857,-1044.64,0.00011033,2]
[347345470,1735715440866,-968.03,0.00011033,2]
[347345472,1735715440875,-500.0,0.00011033,2]
[347345473,1735715440884,-500.0,0.00011033,2]
[347345476,1735715440893,-1815.93,0.00011033,2]
[347345477,1735715440902,-682.55,0.00011033,2]
[347345480,1735715440911,-1003.69,0.00011033,2]
[347345481,1735715440920,-3665.99,0.00011033,2]
[347345483,1735715440929,-1067.83,0.00011033,2]
[347345486,1735715440939,-500.0,0.00011033,2]
[347345488,1735715440949,-845.21,0.00011033,2]
[347345489,1735715440958,-3477.31,0.00011033,2]
[347345491,1735715440978,-806.25,0.00011033,2]
[347345493,1735715440987,-1370.1,0.00011033,2]
[347345496,1735715440996,-1978.19,0.00011033,2]
[347345497,1735715441005,-500.0,0.00011033,2]
[347345498,1735715441014,-1878.85,0.00011033,2]
[347345499,1735715441024,-500.0,0.00011033,2]
[347345500,1735715441033,-500.0,0.00011033,2]
[347345501,1735715441042,-640.87,0.00011033,2]
[347345502,1735715441051,-500.0,0.00011033,2]
[347345503,1735715441061,-679.56,0.00011033,2]
[347345504,1735715441070,-619.78,0.00011033,2]
[347345505,1735715441079,-500.0,0.00011033,2]
[347345506,1735715441087,-500.0,0.00011033,2]
[347345507,1735715441097,-500.0,0.00011033,2]
[347345508,1735715441106,-500.0,0.00011033,2]
[347345509,1735715441115,-500.0,0.00011033,2]
[347345510,1735715441124,-2031.3,0.00011033,2]
[347345511,1735715441133,-500.0,0.00011033,2]
[347345512,1735715441142,-1358.29371141,0.00011033,2]
[347345513,1735715441159,-165.79628859,0.00011033,2]
[347345514,1735715441168,-1172.16098769,0.00011033,2]
[347345515,1735715441179,-471.11002,0.00011033,2]
[347345516,1735715441320,-1073.44899231,0.00011033,2]
[347345517,1735715441330,-500.0,0.00011033,2]
[347345518,1735715441339,-500.0,0.00011033,2]
[347345519,1735715441349,-1932.42,0.00011033,2]
[347345520,1735715441358,-500.0,0.00011033,2]
[347345521,1735715441367,-3606.31,0.00011033,2]
[347345522,1735715441376,-642.09,0.00011033,2]
[347345523,1735715441385,-1518.07,0.00011033,2]
[347345524,1735715441395,-795.95,0.00011033,2]
[347345525,1735715441404,-322.38728871,0.00011033,2]
[347345526,1735715441413,-2020.11,0.00011033,2]
[347345527,1735715441423,-2903.2,0.00011033,2]
[347345528,1735715441432,-500.0,0.00011033,2]
[347345529,1735715441441,-1227.45,0.00011033,2]
[347345530,1735715441451,-739.15,0.00011033,2]
[347345531,1735715441460,-1803.68,0.00011033,2]
[347345532,1735715441469,-505.6,0.00011033,2]
[347345533,1735715441478,-2718.6,0.00011033,2]
[347345534,1735715441488,-687.36,0.00011033,2]
[347345535,1735715441497,-2484.78,0.00011033,2]
[347345536,1735715441507,-1450.15,0.00011033,2]
[347345537,1735715441516,-500.0,0.00011033,2]
[347345538,1735715441525,-588.22869276,0.00011033,2]
[347345539,1735715441534,-672.77,0.00011033,2]
[347345540,1735715441543,-1344.24,0.00011033,2]
[347345541,1735715441552,-500.0,0.00011033,2]
[347345542,1735715441561,-500.0,0.00011033,2]
[347345543,1735715441571,-36.7297693,0.00011033,2]
[347345544,1735715441583,-463.2702307,0.00011033,2]
[347345545,1735715441592,-500.0,0.00011033,2]
[347345546,1735715441601,-192.94758931,0.00011033,2]
[347345547,1735715441612,-307.05241069,0.00011033,2]
[347345548,1735715441621,-500.0,0.00011033,2]
[347345549,1735715441629,-1107.45,0.00011033,2]
[347345550,1735715441637,-1115.29,0.00011033,2]
[347345551,1735715441647,-500.0,0.00011033,2]
[347345552,1735715441656,-500.0,0.00011033,2]
[347345553,1735715441666,-813.3,0.00011033,2]
[347345554,1735715441675,-500.0,0.00011033,2]
[347345555,1735715441684,-648.66,0.00011033,2]
[347345556,1735715441694,-519.3,0.00011033,2]
[347345557,1735715441703,-500.0,0.00011033,2]
[347345558,1735715441712,-4101.13,0.00011033,2]
[347345559,1735715441937,-1125.64,0.00011033,2]
[347345560,1735715441996,-505.47479646,0.00011033,2]
[347345561,1735715442007,-366.42251423,0.00011033,2]
[347345562,1735715442016,-10962.78,0.00011033,2]
[347345563,1735715442027,-601.91,0.00011033,2]
[347345564,1735715442038,-758.96,0.00011033,2]
[347345565,1735715442050,-1349.01,0.00011033,2]
[347345566,1735715442060,-500.0,0.00011033,2]
[347345567,1735715442072,-1432.03,0.00011033,2]
[347345568,1735715442082,-500.0,0.00011033,2]
[347345569,1735715442091,-2668.45,0.00011033,2]
[347345570,1735715442100,-612.16,0.00011033,2]
[347345571,1735715442109,-500.0,0.00011033,2]
[347345572,1735715442118,-3697.88,0.00011033,2]
[347345573,1735715442128,-904.54,0.00011033,2]
[347345574,1735715442137,-1145.76,0.00011033,2]
[347345575,1735715442146,-500.68,0.00011033,2]
[347345576,1735715442155,-7304.9,0.00011033,2]
[347345577,1735715442164,-500.0,0.00011033,2]
[347345578,1735715442173,-500.0,0.00011033,2]
[347345579,1735715442184,-500.0,0.00011033,2]
[347345580,1735715442193,-1984.82,0.00011033,2]
[347345581,1735715442202,-891.17,0.00011033,2]
[347345582,1735715442212,-555.32,0.00011033,2]
[347345583,1735715442222,-5897.25,0.00011033,2]
[347345584,1735715442231,-3403.77,0.00011033,2]
[347345585,1735715442240,-2967.12,0.00011033,2]
[347345586,1735715442250,-500.0,0.00011033,2]
[347345587,1735715442260,-761.16,0.00011033,2]
[347345588,1735715442269,-500.0,0.00011033,2]
[347345589,1735715442278,-611.78,0.00011033,2]
[347345590,1735715442287,-919.25,0.00011033,2]
[347345591,1735715442296,-2381.92,0.00011033,2]
[347345592,1735715442305,-6111.26,0.00011033,2]
[347345593,1735715442314,-9798.92,0.00011033,2]
[347345595,1735715442323,-2619.15,0.00011033,2]
[347345596,1735715442331,-500.0,0.00011033,2]
[347345597,1735715442340,-1070.91,0.00011033,2]
[347345598,1735715442349,-7247.0782637,0.00011033,2]
[347345600,1735715442392,-15756.7217363,0.00011033,2]
[347345602,1735715442402,-975.67,0.00011033,2]
[347345603,1735715442411,-500.0,0.00011033,2]
[347345604,1735715442421,-2133.73,0.00011033,2]
[347345605,1735715442430,-500.0,0.00011033,2]
[347345606,1735715442441,-500.0,0.00011033,2]
[347345607,1735715442451,-500.0,0.00011033,2]
[347345608,1735715442460,-502.19028755,0.00011033,2]
[347345609,1735715442470,-500.0,0.00011033,2]
[347345610,1735715442480,-579.86,0.00011033,2]
[347345611,1735715442492,-1562.19,0.00011033,2]
[347345612,1735715442501,-1354.34,0.00011033,2]
[347345613,1735715442511,-355.31708777,0.00011033,2]
[347345614,1735715442520,-1511.8,0.00011033,2]
[347345615,1735715442529,-500.0,0.00011033,2]
[347345616,1735715442538,-2228.82,0.00011033,2]
[347345617,1735715442548,-952.62,0.00011033,2]
[347345618,1735715442557,-713.94,0.00011033,2]
[347345619,1735715442567,-2045.003948,0.00011033,2]
[347345620,1735715442576,-919.05765881,0.00011033,2]
[347345621,1735715442587,-903.30714911,0.00011033,2]
[347345623,1735715442599,-1301.14519208,0.00011033,2]
[347345625,1735715442608,-590.55,0.00011033,2]
[347345626,1735715442617,-500.0,0.00011033,2]
[347345627,1735715442626,-167.43079898,0.00011033,2]
[347345628,1735715442638,-1692.55920102,0.00011033,2]
[347345629,1735715442647,-155.581604,0.00011033,2]
[347345630,1735715442656,-1843.68,0.00011033,2]
[347345631,1735715442665,-500.0,0.00011033,2]
[347345632,1735715442675,-74.42418186,0.00011033,2]
[347345633,1735715442686,-1405.32950972,0.00011033,2]
[347345634,1735715442697,-502.27,0.00011033,2]
[347345635,1735715442709,-669.82630842,0.00011033,2]
[347345636,1735715442718,-500.0,0.00011033,2]
[347345637,1735715442728,-158.523012,0.00011033,2]
[347345638,1735715442738,-1713.03,0.00011033,2]
[347345639,1735715442747,-500.0,0.00011033,2]
[347345640,1735715442756,-957.6,0.00011033,2]
[347345641,1735715442765,-128.89110056,0.00011033,2]
[347345642,1735715442777,-304.33735203,0.00011033,2]
[347345643,1735715442807,-143.79154741,0.00011033,2]
[347345644,1735715442817,-767.49,0.00011033,2]
[347345645,1735715442825,-1124.47,0.00011033,2]
[347345646,1735715442835,-1791.04845258,0.00011033,2]
[347345647,1735715443700,-358.67365013,0.00011033,2]
[347345648,1735715443717,-280.88789729,0.00011033,2]
[347345649,1735715443727,-506.27,0.00011033,2]
[347345650,1735715443735,-500.0,0.00011033,2]
[347345651,1735715443744,-1257.9,0.00011033,2]
[347345652,1735715443753,-500.0,0.00011033,2]
[347345653,1735715443762,-1907.75,0.00011033,2]
[347345654,1735715443771,-2768.21,0.00011033,2]
[347345655,1735715443780,-500.0,0.00011033,2]
[347345656,1735715443789,-500.0,0.00011033,2]
[347345657,1735715443798,-500.0,0.00011033,2]
[347345658,1735715443807,-2942.22,0.00011033,2]
[347345659,1735715443816,-711.04,0.00011033,2]
[347345660,1735715443825,-2826.83083,0.00011033,2]
[347345661,1735715443834,-1029.38,0.00011033,2]
[347345662,1735715443843,-654.82,0.00011033,2]
[347345663,1735715443852,-823.16,0.00011033,2]
[347345664,1735715443861,-500.0,0.00011033,2]
[347345665,1735715443870,-414.55252077,0.00011033,2]
[347345666,1735715443881,-85.44747923,0.00011033,2]
[347345667,1735715443891,-500.0,0.00011033,2]
[347345668,1735715443900,-500.0,0.00011033,2]
[347345669,1735715443909,-896.29,0.00011033,2]
[347345670,1735715443918,-500.0,0.00011033,2]
[347345671,1735715443927,-4908.85403377,0.00011033,2]
[347345672,1735715443957,-8597.03596623,0.00011033,2]
[347345673,1735715443971,-3110.98,0.00011033,2]
[347345674,1735715443981,-677.13,0.00011033,2]
[347345675,1735715443990,-500.0,0.00011033,2]
[347345676,1735715443999,-3692.59,0.00011033,2]
[347345677,1735715444010,-500.0,0.00011033,2]
[347345678,1735715444020,-4120.38,0.00011033,2]
[347345679,1735715444030,-500.0,0.00011033,2]
[347345680,1735715444043,-500.0,0.00011033,2]
[347345681,1735715444053,-6396.56,0.00011033,2]
[347345682,1735715444063,-2782.42,0.00011033,2]
[347345683,1735715444072,-1912.52,0.00011033,2]
[347345684,1735715444082,-1541.27,0.00011033,2]
[347345685,1735715444091,-500.0,0.00011033,2]
[347345686,1735715444100,-500.0,0.00011033,2]
[347345687,1735715444109,-1664.72,0.00011033,2]
[347345688,1735715444118,-947.92,0.00011033,2]
[347345689,1735715444127,-1152.48,0.00011033,2]
[347345690,1735715444137,-500.0,0.00011033,2]
[347345691,1735715444149,-1919.25,0.00011033,2]
[347345692,1735715444159,-1071.79,0.00011033,2]
[347345693,1735715444169,-500.0,0.00011033,2]
[347345694,1735715444179,-500.0,0.00011033,2]
[347345695,1735715444188,-1225.72,0.00011033,2]
[347345696,1735715444197,-500.0,0.00011033,2]
[347345697,1735715444205,-500.0,0.00011033,2]
[347345698,1735715444215,-1271.97,0.00011033,2]
[347345699,1735715444225,-1788.81,0.00011033,2]
[347345700,1735715444235,-500.0,0.00011033,2]
[347345701,1735715444244,-500.0,0.00011033,2]
[347345702,1735715444253,-815.36,0.00011033,2]
[347345703,1735715444262,-3613.15,0.00011033,2]
[347345704,1735715444271,-500.0,0.00011033,2]
[347345705,1735715444280,-5132.38,0.00011033,2]
[347345706,1735715444290,-500.0,0.00011033,2]
[347345707,1735715444299,-500.0,0.00011033,2]
[347345708,1735715444308,-1300.49,0.00011033,2]
[347345709,1735715444317,-500.0,0.00011033,2]
[347345710,1735715444326,-2547.5,0.00011033,2]
[347345711,1735715444335,-2623.37476778,0.00011033,2]
[347345712,1735715445282,-842.16714779,0.00011033,2]
[347345713,1735715445293,-2901.18779003,0.00011033,2]
[347345714,1735715445305,-164.6002944,0.00011033,2]
[347345715,1735715445314,-500.0,0.00011033,2]
[347345716,1735715445324,-500.0,0.00011033,2]
[347345717,1735715445333,-500.0,0.00011033,2]
[347345718,1735715445342,-669.58,0.00011033,2]
[347345719,1735715445351,-500.0,0.00011033,2]
[347345720,1735715445361,-500.0,0.00011033,2]
[347345721,1735715445370,-604.88,0.00011033,2]
[347345723,1735715445378,-1421.85,0.00011033,2]
[347345724,1735715445387,-6106.15740457,0.00011033,2]
[347345725,1735715445398,-8127.0,0.00011033,2]
[347345726,1735715445421,-1180.27259543,0.00011033,2]
[347345727,1735715445430,-282.53511916,0.00011033,2]
[347345750,1735715446191,-500.0,0.00011031,2]
[347345751,1735715446201,-217.46488084,0.00011033,2]
[347345752,1735715446210,-500.0,0.00011033,2]
[347345753,1735715446219,-500.0,0.00011033,2]
[347345754,1735715446229,-500.0,0.00011033,2]
[347345755,1735715446238,-6049.41,0.00011033,2]
[347345756,1735715446247,-805.77,0.00011033,2]
[347345757,1735715446256,-517.28,0.00011033,2]
[347345758,1735715446266,-2304.94,0.00011033,2]
[347345759,1735715446275,-500.0,0.00011033,2]
[347345760,1735715446284,-500.0,0.00011033,2]
[347345761,1735715446293,-453.08928948,0.00011033,2]
[347345762,1735715446303,-5423.64582968,0.00011033,2]
[347345763,1735715446316,-3007.71417032,0.00011033,2]
[347345764,1735715446325,-1824.46,0.00011033,2]
[347345765,1735715446334,-500.0,0.00011033,2]
[347345766,1735715446343,-500.0,0.00011033,2]
[347345767,1735715446353,-500.0,0.00011033,2]
[347345768,1735715446363,-3995.03,0.00011033,2]
[347345769,1735715446372,-2268.32,0.00011033,2]
[347345770,1735715446381,-500.0,0.00011033,2]
[347345771,1735715446391,-500.0,0.00011033,2]
[347345772,1735715446401,-1046.21,0.00011033,2]
[347345773,1735715446411,-500.0,0.00011033,2]
[347345774,1735715446419,-1228.38,0.00011033,2]
[347345775,1735715446429,-1777.92,0.00011033,2]
[347345776,1735715446438,-500.0,0.00011033,2]
[347345777,1735715446447,-627.11777876,0.00011033,2]
[347345778,1735715446456,-4174.51513555,0.00011033,2]
[347345779,1735715446468,-8127.87571938,0.00011033,2]
[347345780,1735715446479,-840.14914507,0.00011033,2]
[347345781,1735715446488,-500.0,0.00011033,2]
[347345782,1735715446497,-500.0,0.00011033,2]
[347345783,1735715446507,-737.64,0.00011033,2]
[347345784,1735715446516,-1206.21,0.00011033,2]
[347345785,1735715446525,-1408.76915933,0.00011033,2]
[347345786,1735715446537,-660.00000004,0.00011033,2]
[347345787,1735715446548,-54.65084063,0.00011033,2]
[347345788,1735715446557,-791.24,0.00011033,2]
[347345789,1735715446567,-500.0,0.00011033,2]
[347345790,1735715446576,-500.0,0.00011033,2]
[347345791,1735715446585,-508.46,0.00011034,2]
[347345792,1735715446595,-496.12,0.00011034,2]
[347345793,1735715446604,-500.0,0.00011034,2]
[347345794,1735715446613,-2705.53,0.00011034,2]
[347345795,1735715446624,-596.76,0.00011034,2]
[347345796,1735715446634,-2327.35,0.00011034,2]
[347345797,1735715446643,-3570.31,0.00011034,2]
[347345798,1735715446652,-845.22,0.00011034,2]
[347345799,1735715446663,-2003.03085257,0.00011034,2]
[347345800,1735715446771,-1674.04914743,0.00011034,2]
[347345801,1735715446780,-3536.35,0.00011034,2]
[347345802,1735715446790,-1210.9,0.00011034,2]
[347345803,1735715446800,-2484.94,0.00011034,2]
[347345804,1735715446809,-2321.73,0.00011034,2]
[347345805,1735715446818,-44.98794284,0.00011034,2]
[347345806,1735715446841,-455.01205716,0.00011034,2]
[347345807,1735715446851,-381.48790537,0.00011034,2]
[347345808,1735715446864,-1942.19209463,0.00011034,2]
[347345809,1735715446874,-1469.62,0.00011034,2]
[347345810,1735715446883,-500.0,0.00011034,2]
[347345811,1735715446892,-2054.2,0.00011034,2]
[347345812,1735715446901,-2553.57,0.00011034,2]
[347345813,1735715446910,-1204.01,0.00011034,2]
[347345814,1735715446919,-2165.75,0.00011034,2]
[347345815,1735715446928,-3665.26,0.00011034,2]
[347345816,1735715446937,-3935.87,0.00011034,2]
[347345817,1735715446947,-500.0,0.00011034,2]
[347345818,1735715446956,-375.56280578,0.00011034,2]
[347345819,1735715446969,-1859.09,0.00011034,2]
[347345820,1735715446981,-500.0,0.00011034,2]
[347345821,1735715446990,-2887.07,0.00011034,2]
[347345822,1735715446999,-500.0,0.00011034,2]
[347345823,1735715447011,-1641.66700171,0.00011034,2]
[347345824,1735715447022,-1715.89299829,0.00011034,2]
[347345825,1735715447031,-3493.81,0.00011034,2]
[347345826,1735715447042,-500.0,0.00011034,2]
[347345827,1735715447051,-1801.97,0.00011034,2]
[347345828,1735715447061,-500.0,0.00011034,2]
[347345829,1735715447070,-688.57,0.00011034,2]
[347345830,1735715447080,-2665.38,0.00011034,2]
[347345831,1735715447089,-1186.36,0.00011034,2]
[347345832,1735715447098,-2093.26,0.00011034,2]
[347345833,1735715447107,-1055.5,0.00011034,2]
[347345834,1735715447116,-1320.99,0.00011034,2]
[347345835,1735715447126,-3085.58,0.00011034,2]
[347345836,1735715447134,-2035.96,0.00011034,2]
[347345837,1735715447143,-3968.0,0.00011034,2]
[347345838,1735715447152,-2002.39,0.00011034,2]
[347345839,1735715447161,-535.46,0.00011034,2]
[347345840,1735715447170,-2177.71,0.00011034,2]
[347345841,1735715447179,-647.38,0.00011034,2]
[347345842,1735715447188,-6926.59,0.00011034,2]
[347345843,1735715447198,-2806.97,0.00011034,2]
[347345844,1735715447207,-3761.12,0.00011034,2]
[347345845,1735715447216,-8561.05,0.00011034,2]
[347345846,1735715447225,-2019.19,0.00011034,2]
[347345847,1735715447236,-500.0,0.00011034,2]
[347345848,1735715447245,-2451.18,0.00011034,2]
[347345849,1735715447254,-3916.69,0.00011034,2]
[347345850,1735715447263,-2139.98,0.00011034,2]
[347345851,1735715447272,-5772.27,0.00011034,2]
[347345852,1735715447281,-1293.55,0.00011034,2]
[347345853,1735715447290,-500.0,0.00011034,2]
[347345854,1735715447299,-500.0,0.00011034,2]
[347345855,1735715447308,-500.0,0.00011034,2]
[347345856,1735715447317,-500.0,0.00011034,2]
[347345857,1735715447326,-500.0,0.00011034,2]
[347345858,1735715447335,-499.99,0.00011034,2]
[347345859,1735715447344,-4671.11,0.00011034,2]
[347345860,1735715447353,-2416.93,0.00011034,2]
[347345861,1735715447362,-500.0,0.00011034,2]
[347345862,1735715447371,-589.14,0.00011034,2]
[347345863,1735715447380,-15176.51,0.00011034,2]
[347345864,1735715447389,-2142.91,0.00011034,2]
[347345865,1735715447398,-3444.9,0.00011034,2]
[347345866,1735715447407,-3576.77,0.00011034,2]
[347345867,1735715447416,-8229.53,0.00011034,2]
[347345868,1735715447425,-2282.15,0.00011034,2]
[347345869,1735715447434,-3078.13,0.00011034,2]
[347345870,1735715447443,-3011.22,0.00011034,2]
[347345871,1735715447452,-754.59,0.00011034,2]
[347345872,1735715447462,-36325.22,0.00011034,2]
[347345873,1735715447471,-2602.79,0.00011034,2]
[347345874,1735715447481,-2286.59,0.00011034,2]
[347345875,1735715447490,-847.35,0.00011034,2]
[347345876,1735715447499,-12685.22233521,0.00011034,2]
[347345877,1735715447524,-12034.13766479,0.00011034,2]
[347345878,1735715447534,-2205.91,0.00011034,2]
[347345879,1735715447543,-2515.84,0.00011034,2]
[347345880,1735715447552,-2129.52,0.00011034,2]
[347345881,1735715447563,-1108.25,0.00011034,2]
[347345882,1735715447573,-499.24504529,0.00011034,2]
[347345883,1735715447583,-2288.84,0.00011034,2]
[347345884,1735715447592,-858.65,0.00011034,2]
[347345885,1735715447601,-3029.24,0.00011034,2]
[347345886,1735715447610,-2857.19,0.00011034,2]
[347345887,1735715447619,-2231.33,0.00011034,2]
[347345888,1735715447628,-1019.83535107,0.00011034,2]
[347345889,1735715447639,-769.34464893,0.00011034,2]
[347345890,1735715447649,-10403.03527107,0.00011034,2]
[347345891,1735715447661,-7555.61472893,0.00011034,2]
[347345892,1735715447670,-3487.15,0.00011034,2]
[347345893,1735715447679,-3991.06,0.00011034,2]
[347345894,1735715447689,-7166.17527307,0.00011034,2]
[347345895,1735715447699,-882.47667716,0.00011034,2]
[347345896,1735715534198,264.1401,0.00010933,2]
[347345897,1735715629571,174.773,0.0001074,2]
[347345898,1735715786403,407.90778442,0.00010936,2]
[347345899,1735715853966,46317.9981,0.00010933,2]
[347345900,1735715871365,1626.37289459,0.0001,2]
[347345901,1735715893105,50000.0,0.00011,2]
[347345902,1735715900264,50000.0,0.000105,2]
[347345903,1735715905988,50000.0,0.0001,2]
[347345904,1735715921374,10000.0,0.000101,2]
[347345905,1735715972196,429.45615401,0.00011002,2]
[347345906,1735716038724,250.0,0.00010167,2]